{"text_format":"3","workbook":"xlsx","n_sheets":3,"sheets":["Harmonogram dzienny","Harmonogram zdarzeń","Przedziały czasu"],"not_rendered":{"images":1,"defined_names":21},"read":"whole","date_system":"1900"}

{"sheet":"Harmonogram dzienny","index":0,"n_rows":75,"n_cols":13,"rows_kept":75,"merged":[[1,1,5,2],[2,12,4,12],[3,7,4,7],[5,12,7,12],[6,1,8,2],[8,12,10,12],[9,7,10,7],[10,1,10,2],[11,12,13,12],[14,12,16,12],[15,7,16,7],[17,12,19,12],[18,1,18,2],[20,12,22,12],[21,7,22,7],[23,12,25,12],[25,1,25,2],[26,7,27,7],[26,12,28,12],[29,12,31,12],[31,7,32,7],[32,12,34,12]]}
[null,"Harmonogram dzienny"]
[null,{"$f":"IFERROR(DAY(Wartość_daty),\"\")","v":6},null,null,"Godzina",{"$f":"IFERROR(UPPER(TEXT(DATE(Rok_raportu,Numer_miesiąca,Dzień_raportu),\"d mmmm rrrr\")),\"\")","v":"6 WRZESIEŃ 2019"},null,"TYDZIEŃ W SKRÓCIE",{"$nulls":3},"NOTATKI/LISTA ZADAŃ DO WYKONANIA"]
[{"$nulls":4},{"$f":"'Przedziały czasu'!E3","v":"06:00:00"},{"$f":"IFERROR(INDEX(Harmonogram_zdarzeń[],MATCH(DATEVALUE(Wartość_daty)&Harmonogram_dzienny[[#This Row],[Godzina]],Wyszukaj_datę_i_godzinę,0),3),\"\")","v":"Pobudka"},null,{"$f":"IFERROR(TEXT(DATEVALUE(Wartość_daty)+1,\"dddd\"),\"\")","v":"sobota"},{"$f":"IFERROR(INDEX(Harmonogram_zdarzeń[],MATCH($H$6&\"|\"&ROW(A1),Harmonogram_zdarzeń[WARTOŚĆ UNIKATOWA (OBLICZONA)],0),2),\"\")","v":"06:30:00"},{"$f":"IFERROR(INDEX(Harmonogram_zdarzeń[],MATCH($H$6&\"|\"&ROW(A1),Harmonogram_zdarzeń[WARTOŚĆ UNIKATOWA (OBLICZONA)],0),3),\"\")","v":"Śniadanie"},null,null,"Odebrać ubrania z pralni"]
[{"$nulls":4},{"$f":"'Przedziały czasu'!E4","v":"06:15:00"},{"$f":"IFERROR(INDEX(Harmonogram_zdarzeń[],MATCH(DATEVALUE(Wartość_daty)&Harmonogram_dzienny[[#This Row],[Godzina]],Wyszukaj_datę_i_godzinę,0),3),\"\")","v":""},null,{"$f":"IFERROR(TEXT(DATEVALUE(Wartość_daty)+1,\"d\"),\"\")","v":"7"},{"$f":"IFERROR(INDEX(Harmonogram_zdarzeń[],MATCH($H$6&\"|\"&ROW(A2),Harmonogram_zdarzeń[WARTOŚĆ UNIKATOWA (OBLICZONA)],0),2),\"\")","v":"07:30:00"},{"$f":"IFERROR(INDEX(Harmonogram_zdarzeń[],MATCH($H$6&\"|\"&ROW(A2),Harmonogram_zdarzeń[WARTOŚĆ UNIKATOWA (OBLICZONA)],0),3),\"\")","v":"Wyjście do pracy"}]
[{"$nulls":4},{"$f":"'Przedziały czasu'!E5","v":"06:30:00"},{"$f":"IFERROR(INDEX(Harmonogram_zdarzeń[],MATCH(DATEVALUE(Wartość_daty)&Harmonogram_dzienny[[#This Row],[Godzina]],Wyszukaj_datę_i_godzinę,0),3),\"\")","v":"Prysznic"},null,null,{"$f":"IFERROR(INDEX(Harmonogram_zdarzeń[],MATCH($H$6&\"|\"&ROW(A3),Harmonogram_zdarzeń[WARTOŚĆ UNIKATOWA (OBLICZONA)],0),2),\"\")","v":""},{"$f":"IFERROR(INDEX(Harmonogram_zdarzeń[],MATCH($H$6&\"|\"&ROW(A3),Harmonogram_zdarzeń[WARTOŚĆ UNIKATOWA (OBLICZONA)],0),3),\"\")","v":""}]
[{"$nulls":4},{"$f":"'Przedziały czasu'!E6","v":"06:45:00"},{"$f":"IFERROR(INDEX(Harmonogram_zdarzeń[],MATCH(DATEVALUE(Wartość_daty)&Harmonogram_dzienny[[#This Row],[Godzina]],Wyszukaj_datę_i_godzinę,0),3),\"\")","v":""},null,{"$f":"IFERROR(Wartość_daty+1,\"\")","v":"2019-09-07"},{"$f":"IFERROR(INDEX(Harmonogram_zdarzeń[],MATCH($H$6&\"|\"&ROW(A4),Harmonogram_zdarzeń[WARTOŚĆ UNIKATOWA (OBLICZONA)],0),2),\"\")","v":""},{"$f":"IFERROR(INDEX(Harmonogram_zdarzeń[],MATCH($H$6&\"|\"&ROW(A4),Harmonogram_zdarzeń[WARTOŚĆ UNIKATOWA (OBLICZONA)],0),3),\"\")","v":""},null,null,"Zadzwonić w sprawie kablówki"]
[null,{"$f":"IFERROR(TEXT(Wartość_daty,\"dddd\"),\"\")","v":"piątek"},null,null,{"$f":"'Przedziały czasu'!E7","v":"07:00:00"},{"$f":"IFERROR(INDEX(Harmonogram_zdarzeń[],MATCH(DATEVALUE(Wartość_daty)&Harmonogram_dzienny[[#This Row],[Godzina]],Wyszukaj_datę_i_godzinę,0),3),\"\")","v":""},null,null,{"$f":"IFERROR(INDEX(Harmonogram_zdarzeń[],MATCH($H$6&\"|\"&ROW(A5),Harmonogram_zdarzeń[WARTOŚĆ UNIKATOWA (OBLICZONA)],0),2),\"\")","v":""},{"$f":"IFERROR(INDEX(Harmonogram_zdarzeń[],MATCH($H$6&\"|\"&ROW(A5),Harmonogram_zdarzeń[WARTOŚĆ UNIKATOWA (OBLICZONA)],0),3),\"\")","v":""}]
[{"$nulls":4},{"$f":"'Przedziały czasu'!E8","v":"07:15:00"},{"$f":"IFERROR(INDEX(Harmonogram_zdarzeń[],MATCH(DATEVALUE(Wartość_daty)&Harmonogram_dzienny[[#This Row],[Godzina]],Wyszukaj_datę_i_godzinę,0),3),\"\")","v":""},null,null,{"$f":"IFERROR(INDEX(Harmonogram_zdarzeń[],MATCH($H$6&\"|\"&ROW(A6),Harmonogram_zdarzeń[WARTOŚĆ UNIKATOWA (OBLICZONA)],0),2),\"\")","v":""},{"$f":"IFERROR(INDEX(Harmonogram_zdarzeń[],MATCH($H$6&\"|\"&ROW(A6),Harmonogram_zdarzeń[WARTOŚĆ UNIKATOWA (OBLICZONA)],0),3),\"\")","v":""}]
[{"$nulls":4},{"$f":"'Przedziały czasu'!E9","v":"07:30:00"},{"$f":"IFERROR(INDEX(Harmonogram_zdarzeń[],MATCH(DATEVALUE(Wartość_daty)&Harmonogram_dzienny[[#This Row],[Godzina]],Wyszukaj_datę_i_godzinę,0),3),\"\")","v":"Wyjście do pracy"},null,{"$f":"IFERROR(TEXT(DATEVALUE(Wartość_daty)+2,\"dddd\"),\"\")","v":"niedziela"},{"$f":"IFERROR(INDEX(Harmonogram_zdarzeń[],MATCH($H$12&\"|\"&ROW(A1),Harmonogram_zdarzeń[WARTOŚĆ UNIKATOWA (OBLICZONA)],0),2),\"\")","v":""},{"$f":"IFERROR(INDEX(Harmonogram_zdarzeń[],MATCH($H$12&\"|\"&ROW(A1),Harmonogram_zdarzeń[WARTOŚĆ UNIKATOWA (OBLICZONA)],0),3),\"\")","v":""}]
[{"$nulls":4},{"$f":"'Przedziały czasu'!E10","v":"07:45:00"},{"$f":"IFERROR(INDEX(Harmonogram_zdarzeń[],MATCH(DATEVALUE(Wartość_daty)&Harmonogram_dzienny[[#This Row],[Godzina]],Wyszukaj_datę_i_godzinę,0),3),\"\")","v":""},null,{"$f":"IFERROR(TEXT(DATEVALUE(Wartość_daty)+2,\"d\"),\"\")","v":"8"},{"$f":"IFERROR(INDEX(Harmonogram_zdarzeń[],MATCH($H$12&\"|\"&ROW(A2),Harmonogram_zdarzeń[WARTOŚĆ UNIKATOWA (OBLICZONA)],0),2),\"\")","v":""},{"$f":"IFERROR(INDEX(Harmonogram_zdarzeń[],MATCH($H$12&\"|\"&ROW(A2),Harmonogram_zdarzeń[WARTOŚĆ UNIKATOWA (OBLICZONA)],0),3),\"\")","v":""}]
[null,"WYŚWIETL HARMONOGRAM",null,null,{"$f":"'Przedziały czasu'!E11","v":"08:00:00"},{"$f":"IFERROR(INDEX(Harmonogram_zdarzeń[],MATCH(DATEVALUE(Wartość_daty)&Harmonogram_dzienny[[#This Row],[Godzina]],Wyszukaj_datę_i_godzinę,0),3),\"\")","v":"Początek zmiany"},null,null,{"$f":"IFERROR(INDEX(Harmonogram_zdarzeń[],MATCH($H$12&\"|\"&ROW(A3),Harmonogram_zdarzeń[WARTOŚĆ UNIKATOWA (OBLICZONA)],0),2),\"\")","v":""},{"$f":"IFERROR(INDEX(Harmonogram_zdarzeń[],MATCH($H$12&\"|\"&ROW(A3),Harmonogram_zdarzeń[WARTOŚĆ UNIKATOWA (OBLICZONA)],0),3),\"\")","v":""}]
[{"$nulls":4},{"$f":"'Przedziały czasu'!E12","v":"08:15:00"},{"$f":"IFERROR(INDEX(Harmonogram_zdarzeń[],MATCH(DATEVALUE(Wartość_daty)&Harmonogram_dzienny[[#This Row],[Godzina]],Wyszukaj_datę_i_godzinę,0),3),\"\")","v":""},null,{"$f":"IFERROR(Wartość_daty+2,\"\")","v":"2019-09-08"},{"$f":"IFERROR(INDEX(Harmonogram_zdarzeń[],MATCH($H$12&\"|\"&ROW(A4),Harmonogram_zdarzeń[WARTOŚĆ UNIKATOWA (OBLICZONA)],0),2),\"\")","v":""},{"$f":"IFERROR(INDEX(Harmonogram_zdarzeń[],MATCH($H$12&\"|\"&ROW(A4),Harmonogram_zdarzeń[WARTOŚĆ UNIKATOWA (OBLICZONA)],0),3),\"\")","v":""}]
[null,"Rok",null,null,{"$f":"'Przedziały czasu'!E13","v":"08:30:00"},{"$f":"IFERROR(INDEX(Harmonogram_zdarzeń[],MATCH(DATEVALUE(Wartość_daty)&Harmonogram_dzienny[[#This Row],[Godzina]],Wyszukaj_datę_i_godzinę,0),3),\"\")","v":""},null,null,{"$f":"IFERROR(INDEX(Harmonogram_zdarzeń[],MATCH($H$12&\"|\"&ROW(A5),Harmonogram_zdarzeń[WARTOŚĆ UNIKATOWA (OBLICZONA)],0),2),\"\")","v":""},{"$f":"IFERROR(INDEX(Harmonogram_zdarzeń[],MATCH($H$12&\"|\"&ROW(A5),Harmonogram_zdarzeń[WARTOŚĆ UNIKATOWA (OBLICZONA)],0),3),\"\")","v":""}]
[{"$nulls":4},{"$f":"'Przedziały czasu'!E14","v":"08:45:00"},{"$f":"IFERROR(INDEX(Harmonogram_zdarzeń[],MATCH(DATEVALUE(Wartość_daty)&Harmonogram_dzienny[[#This Row],[Godzina]],Wyszukaj_datę_i_godzinę,0),3),\"\")","v":""},null,null,{"$f":"IFERROR(INDEX(Harmonogram_zdarzeń[],MATCH($H$12&\"|\"&ROW(A6),Harmonogram_zdarzeń[WARTOŚĆ UNIKATOWA (OBLICZONA)],0),2),\"\")","v":""},{"$f":"IFERROR(INDEX(Harmonogram_zdarzeń[],MATCH($H$12&\"|\"&ROW(A6),Harmonogram_zdarzeń[WARTOŚĆ UNIKATOWA (OBLICZONA)],0),3),\"\")","v":""}]
[null,"Miesiąc",null,null,{"$f":"'Przedziały czasu'!E15","v":"09:00:00"},{"$f":"IFERROR(INDEX(Harmonogram_zdarzeń[],MATCH(DATEVALUE(Wartość_daty)&Harmonogram_dzienny[[#This Row],[Godzina]],Wyszukaj_datę_i_godzinę,0),3),\"\")","v":""},null,{"$f":"IFERROR(TEXT(DATEVALUE(Wartość_daty)+3,\"dddd\"),\"\")","v":"poniedziałek"},{"$f":"IFERROR(INDEX(Harmonogram_zdarzeń[],MATCH($H$18&\"|\"&ROW(A1),Harmonogram_zdarzeń[WARTOŚĆ UNIKATOWA (OBLICZONA)],0),2),\"\")","v":""},{"$f":"IFERROR(INDEX(Harmonogram_zdarzeń[],MATCH($H$18&\"|\"&ROW(A1),Harmonogram_zdarzeń[WARTOŚĆ UNIKATOWA (OBLICZONA)],0),3),\"\")","v":""}]
[{"$nulls":4},{"$f":"'Przedziały czasu'!E16","v":"09:15:00"},{"$f":"IFERROR(INDEX(Harmonogram_zdarzeń[],MATCH(DATEVALUE(Wartość_daty)&Harmonogram_dzienny[[#This Row],[Godzina]],Wyszukaj_datę_i_godzinę,0),3),\"\")","v":""},null,{"$f":"IFERROR(TEXT(DATEVALUE(Wartość_daty)+3,\"d\"),\"\")","v":"9"},{"$f":"IFERROR(INDEX(Harmonogram_zdarzeń[],MATCH($H$18&\"|\"&ROW(A2),Harmonogram_zdarzeń[WARTOŚĆ UNIKATOWA (OBLICZONA)],0),2),\"\")","v":""},{"$f":"IFERROR(INDEX(Harmonogram_zdarzeń[],MATCH($H$18&\"|\"&ROW(A2),Harmonogram_zdarzeń[WARTOŚĆ UNIKATOWA (OBLICZONA)],0),3),\"\")","v":""}]
[null,"Dzień",null,null,{"$f":"'Przedziały czasu'!E17","v":"09:30:00"},{"$f":"IFERROR(INDEX(Harmonogram_zdarzeń[],MATCH(DATEVALUE(Wartość_daty)&Harmonogram_dzienny[[#This Row],[Godzina]],Wyszukaj_datę_i_godzinę,0),3),\"\")","v":""},null,null,{"$f":"IFERROR(INDEX(Harmonogram_zdarzeń[],MATCH($H$18&\"|\"&ROW(A3),Harmonogram_zdarzeń[WARTOŚĆ UNIKATOWA (OBLICZONA)],0),2),\"\")","v":""},{"$f":"IFERROR(INDEX(Harmonogram_zdarzeń[],MATCH($H$18&\"|\"&ROW(A3),Harmonogram_zdarzeń[WARTOŚĆ UNIKATOWA (OBLICZONA)],0),3),\"\")","v":""}]
[{"$nulls":4},{"$f":"'Przedziały czasu'!E18","v":"09:45:00"},{"$f":"IFERROR(INDEX(Harmonogram_zdarzeń[],MATCH(DATEVALUE(Wartość_daty)&Harmonogram_dzienny[[#This Row],[Godzina]],Wyszukaj_datę_i_godzinę,0),3),\"\")","v":""},null,{"$f":"IFERROR(Wartość_daty+3,\"\")","v":"2019-09-09"},{"$f":"IFERROR(INDEX(Harmonogram_zdarzeń[],MATCH($H$18&\"|\"&ROW(A4),Harmonogram_zdarzeń[WARTOŚĆ UNIKATOWA (OBLICZONA)],0),2),\"\")","v":""},{"$f":"IFERROR(INDEX(Harmonogram_zdarzeń[],MATCH($H$18&\"|\"&ROW(A4),Harmonogram_zdarzeń[WARTOŚĆ UNIKATOWA (OBLICZONA)],0),3),\"\")","v":""}]
[null,"EDYTUJ HARMONOGRAM",null,null,{"$f":"'Przedziały czasu'!E19","v":"10:00:00"},{"$f":"IFERROR(INDEX(Harmonogram_zdarzeń[],MATCH(DATEVALUE(Wartość_daty)&Harmonogram_dzienny[[#This Row],[Godzina]],Wyszukaj_datę_i_godzinę,0),3),\"\")","v":"Przerwa"},null,null,{"$f":"IFERROR(INDEX(Harmonogram_zdarzeń[],MATCH($H$18&\"|\"&ROW(A5),Harmonogram_zdarzeń[WARTOŚĆ UNIKATOWA (OBLICZONA)],0),2),\"\")","v":""},{"$f":"IFERROR(INDEX(Harmonogram_zdarzeń[],MATCH($H$18&\"|\"&ROW(A5),Harmonogram_zdarzeń[WARTOŚĆ UNIKATOWA (OBLICZONA)],0),3),\"\")","v":""}]
[{"$nulls":4},{"$f":"'Przedziały czasu'!E20","v":"10:15:00"},{"$f":"IFERROR(INDEX(Harmonogram_zdarzeń[],MATCH(DATEVALUE(Wartość_daty)&Harmonogram_dzienny[[#This Row],[Godzina]],Wyszukaj_datę_i_godzinę,0),3),\"\")","v":""},null,null,{"$f":"IFERROR(INDEX(Harmonogram_zdarzeń[],MATCH($H$18&\"|\"&ROW(A6),Harmonogram_zdarzeń[WARTOŚĆ UNIKATOWA (OBLICZONA)],0),2),\"\")","v":""},{"$f":"IFERROR(INDEX(Harmonogram_zdarzeń[],MATCH($H$18&\"|\"&ROW(A6),Harmonogram_zdarzeń[WARTOŚĆ UNIKATOWA (OBLICZONA)],0),3),\"\")","v":""}]
[null,"Wybierz, aby edytować przedziały czasu",null,null,{"$f":"'Przedziały czasu'!E21","v":"10:30:00"},{"$f":"IFERROR(INDEX(Harmonogram_zdarzeń[],MATCH(DATEVALUE(Wartość_daty)&Harmonogram_dzienny[[#This Row],[Godzina]],Wyszukaj_datę_i_godzinę,0),3),\"\")","v":""},null,{"$f":"IFERROR(TEXT(DATEVALUE(Wartość_daty)+4,\"dddd\"),\"\")","v":"wtorek"},{"$f":"IFERROR(INDEX(Harmonogram_zdarzeń[],MATCH($H$24&\"|\"&ROW(A1),Harmonogram_zdarzeń[WARTOŚĆ UNIKATOWA (OBLICZONA)],0),2),\"\")","v":""},{"$f":"IFERROR(INDEX(Harmonogram_zdarzeń[],MATCH($H$24&\"|\"&ROW(A1),Harmonogram_zdarzeń[WARTOŚĆ UNIKATOWA (OBLICZONA)],0),3),\"\")","v":""}]
[{"$nulls":4},{"$f":"'Przedziały czasu'!E22","v":"10:45:00"},{"$f":"IFERROR(INDEX(Harmonogram_zdarzeń[],MATCH(DATEVALUE(Wartość_daty)&Harmonogram_dzienny[[#This Row],[Godzina]],Wyszukaj_datę_i_godzinę,0),3),\"\")","v":""},null,{"$f":"IFERROR(TEXT(DATEVALUE(Wartość_daty)+4,\"d\"),\"\")","v":"10"},{"$f":"IFERROR(INDEX(Harmonogram_zdarzeń[],MATCH($H$24&\"|\"&ROW(A2),Harmonogram_zdarzeń[WARTOŚĆ UNIKATOWA (OBLICZONA)],0),2),\"\")","v":""},{"$f":"IFERROR(INDEX(Harmonogram_zdarzeń[],MATCH($H$24&\"|\"&ROW(A2),Harmonogram_zdarzeń[WARTOŚĆ UNIKATOWA (OBLICZONA)],0),3),\"\")","v":""}]
[null,"Wybierz, aby dodać nowe zdarzenie",null,null,{"$f":"'Przedziały czasu'!E23","v":"11:00:00"},{"$f":"IFERROR(INDEX(Harmonogram_zdarzeń[],MATCH(DATEVALUE(Wartość_daty)&Harmonogram_dzienny[[#This Row],[Godzina]],Wyszukaj_datę_i_godzinę,0),3),\"\")","v":""},null,null,{"$f":"IFERROR(INDEX(Harmonogram_zdarzeń[],MATCH($H$24&\"|\"&ROW(A3),Harmonogram_zdarzeń[WARTOŚĆ UNIKATOWA (OBLICZONA)],0),2),\"\")","v":""},{"$f":"IFERROR(INDEX(Harmonogram_zdarzeń[],MATCH($H$24&\"|\"&ROW(A3),Harmonogram_zdarzeń[WARTOŚĆ UNIKATOWA (OBLICZONA)],0),3),\"\")","v":""}]
[{"$nulls":4},{"$f":"'Przedziały czasu'!E24","v":"11:15:00"},{"$f":"IFERROR(INDEX(Harmonogram_zdarzeń[],MATCH(DATEVALUE(Wartość_daty)&Harmonogram_dzienny[[#This Row],[Godzina]],Wyszukaj_datę_i_godzinę,0),3),\"\")","v":""},null,{"$f":"IFERROR(Wartość_daty+4,\"\")","v":"2019-09-10"},{"$f":"IFERROR(INDEX(Harmonogram_zdarzeń[],MATCH($H$24&\"|\"&ROW(A4),Harmonogram_zdarzeń[WARTOŚĆ UNIKATOWA (OBLICZONA)],0),2),\"\")","v":""},{"$f":"IFERROR(INDEX(Harmonogram_zdarzeń[],MATCH($H$24&\"|\"&ROW(A4),Harmonogram_zdarzeń[WARTOŚĆ UNIKATOWA (OBLICZONA)],0),3),\"\")","v":""}]
[null,"WYRÓŻNIJ W HARMONOGRAMIE:",null,null,{"$f":"'Przedziały czasu'!E25","v":"11:30:00"},{"$f":"IFERROR(INDEX(Harmonogram_zdarzeń[],MATCH(DATEVALUE(Wartość_daty)&Harmonogram_dzienny[[#This Row],[Godzina]],Wyszukaj_datę_i_godzinę,0),3),\"\")","v":""},null,null,{"$f":"IFERROR(INDEX(Harmonogram_zdarzeń[],MATCH($H$24&\"|\"&ROW(A5),Harmonogram_zdarzeń[WARTOŚĆ UNIKATOWA (OBLICZONA)],0),2),\"\")","v":""},{"$f":"IFERROR(INDEX(Harmonogram_zdarzeń[],MATCH($H$24&\"|\"&ROW(A5),Harmonogram_zdarzeń[WARTOŚĆ UNIKATOWA (OBLICZONA)],0),3),\"\")","v":""}]
[null,"Przerwa",null,null,{"$f":"'Przedziały czasu'!E26","v":"11:45:00"},{"$f":"IFERROR(INDEX(Harmonogram_zdarzeń[],MATCH(DATEVALUE(Wartość_daty)&Harmonogram_dzienny[[#This Row],[Godzina]],Wyszukaj_datę_i_godzinę,0),3),\"\")","v":""},null,{"$f":"IFERROR(TEXT(DATEVALUE(Wartość_daty)+5,\"dddd\"),\"\")","v":"środa"},{"$f":"IFERROR(INDEX(Harmonogram_zdarzeń[],MATCH($H$29&\"|\"&ROW(A1),Harmonogram_zdarzeń[WARTOŚĆ UNIKATOWA (OBLICZONA)],0),2),\"\")","v":""},{"$f":"IFERROR(INDEX(Harmonogram_zdarzeń[],MATCH($H$29&\"|\"&ROW(A1),Harmonogram_zdarzeń[WARTOŚĆ UNIKATOWA (OBLICZONA)],0),3),\"\")","v":""}]
[{"$nulls":4},{"$f":"'Przedziały czasu'!E27","v":"12:00:00"},{"$f":"IFERROR(INDEX(Harmonogram_zdarzeń[],MATCH(DATEVALUE(Wartość_daty)&Harmonogram_dzienny[[#This Row],[Godzina]],Wyszukaj_datę_i_godzinę,0),3),\"\")","v":"Obiad"},null,{"$f":"IFERROR(TEXT(DATEVALUE(Wartość_daty)+5,\"d\"),\"\")","v":"11"},{"$f":"IFERROR(INDEX(Harmonogram_zdarzeń[],MATCH($H$29&\"|\"&ROW(A2),Harmonogram_zdarzeń[WARTOŚĆ UNIKATOWA (OBLICZONA)],0),2),\"\")","v":""},{"$f":"IFERROR(INDEX(Harmonogram_zdarzeń[],MATCH($H$29&\"|\"&ROW(A2),Harmonogram_zdarzeń[WARTOŚĆ UNIKATOWA (OBLICZONA)],0),3),\"\")","v":""}]
[{"$nulls":4},{"$f":"'Przedziały czasu'!E28","v":"12:15:00"},{"$f":"IFERROR(INDEX(Harmonogram_zdarzeń[],MATCH(DATEVALUE(Wartość_daty)&Harmonogram_dzienny[[#This Row],[Godzina]],Wyszukaj_datę_i_godzinę,0),3),\"\")","v":""},null,null,{"$f":"IFERROR(INDEX(Harmonogram_zdarzeń[],MATCH($H$29&\"|\"&ROW(A3),Harmonogram_zdarzeń[WARTOŚĆ UNIKATOWA (OBLICZONA)],0),2),\"\")","v":""},{"$f":"IFERROR(INDEX(Harmonogram_zdarzeń[],MATCH($H$29&\"|\"&ROW(A3),Harmonogram_zdarzeń[WARTOŚĆ UNIKATOWA (OBLICZONA)],0),3),\"\")","v":""}]
[{"$nulls":4},{"$f":"'Przedziały czasu'!E29","v":"12:30:00"},{"$f":"IFERROR(INDEX(Harmonogram_zdarzeń[],MATCH(DATEVALUE(Wartość_daty)&Harmonogram_dzienny[[#This Row],[Godzina]],Wyszukaj_datę_i_godzinę,0),3),\"\")","v":""},null,{"$f":"IFERROR(Wartość_daty+5,\"\")","v":"2019-09-11"},{"$f":"IFERROR(INDEX(Harmonogram_zdarzeń[],MATCH($H$29&\"|\"&ROW(A4),Harmonogram_zdarzeń[WARTOŚĆ UNIKATOWA (OBLICZONA)],0),2),\"\")","v":""},{"$f":"IFERROR(INDEX(Harmonogram_zdarzeń[],MATCH($H$29&\"|\"&ROW(A4),Harmonogram_zdarzeń[WARTOŚĆ UNIKATOWA (OBLICZONA)],0),3),\"\")","v":""}]
[{"$nulls":4},{"$f":"'Przedziały czasu'!E30","v":"12:45:00"},{"$f":"IFERROR(INDEX(Harmonogram_zdarzeń[],MATCH(DATEVALUE(Wartość_daty)&Harmonogram_dzienny[[#This Row],[Godzina]],Wyszukaj_datę_i_godzinę,0),3),\"\")","v":""},null,null,{"$f":"IFERROR(INDEX(Harmonogram_zdarzeń[],MATCH($H$29&\"|\"&ROW(A5),Harmonogram_zdarzeń[WARTOŚĆ UNIKATOWA (OBLICZONA)],0),2),\"\")","v":""},{"$f":"IFERROR(INDEX(Harmonogram_zdarzeń[],MATCH($H$29&\"|\"&ROW(A5),Harmonogram_zdarzeń[WARTOŚĆ UNIKATOWA (OBLICZONA)],0),3),\"\")","v":""}]
[{"$nulls":4},{"$f":"'Przedziały czasu'!E31","v":"13:00:00"},{"$f":"IFERROR(INDEX(Harmonogram_zdarzeń[],MATCH(DATEVALUE(Wartość_daty)&Harmonogram_dzienny[[#This Row],[Godzina]],Wyszukaj_datę_i_godzinę,0),3),\"\")","v":""},null,{"$f":"IFERROR(TEXT(DATEVALUE(Wartość_daty)+6,\"dddd\"),\"\")","v":"czwartek"},{"$f":"IFERROR(INDEX(Harmonogram_zdarzeń[],MATCH($H$34&\"|\"&ROW(A1),Harmonogram_zdarzeń[WARTOŚĆ UNIKATOWA (OBLICZONA)],0),2),\"\")","v":""},{"$f":"IFERROR(INDEX(Harmonogram_zdarzeń[],MATCH($H$34&\"|\"&ROW(A1),Harmonogram_zdarzeń[WARTOŚĆ UNIKATOWA (OBLICZONA)],0),3),\"\")","v":""}]
[{"$nulls":4},{"$f":"'Przedziały czasu'!E32","v":"13:15:00"},{"$f":"IFERROR(INDEX(Harmonogram_zdarzeń[],MATCH(DATEVALUE(Wartość_daty)&Harmonogram_dzienny[[#This Row],[Godzina]],Wyszukaj_datę_i_godzinę,0),3),\"\")","v":""},null,{"$f":"IFERROR(TEXT(DATEVALUE(Wartość_daty)+6,\"d\"),\"\")","v":"12"},{"$f":"IFERROR(INDEX(Harmonogram_zdarzeń[],MATCH($H$34&\"|\"&ROW(A2),Harmonogram_zdarzeń[WARTOŚĆ UNIKATOWA (OBLICZONA)],0),2),\"\")","v":""},{"$f":"IFERROR(INDEX(Harmonogram_zdarzeń[],MATCH($H$34&\"|\"&ROW(A2),Harmonogram_zdarzeń[WARTOŚĆ UNIKATOWA (OBLICZONA)],0),3),\"\")","v":""}]
[{"$nulls":4},{"$f":"'Przedziały czasu'!E33","v":"13:30:00"},{"$f":"IFERROR(INDEX(Harmonogram_zdarzeń[],MATCH(DATEVALUE(Wartość_daty)&Harmonogram_dzienny[[#This Row],[Godzina]],Wyszukaj_datę_i_godzinę,0),3),\"\")","v":"Zadzwonić do firmy"},null,null,{"$f":"IFERROR(INDEX(Harmonogram_zdarzeń[],MATCH($H$34&\"|\"&ROW(A3),Harmonogram_zdarzeń[WARTOŚĆ UNIKATOWA (OBLICZONA)],0),2),\"\")","v":""},{"$f":"IFERROR(INDEX(Harmonogram_zdarzeń[],MATCH($H$34&\"|\"&ROW(A3),Harmonogram_zdarzeń[WARTOŚĆ UNIKATOWA (OBLICZONA)],0),3),\"\")","v":""}]
[{"$nulls":4},{"$f":"'Przedziały czasu'!E34","v":"13:45:00"},{"$f":"IFERROR(INDEX(Harmonogram_zdarzeń[],MATCH(DATEVALUE(Wartość_daty)&Harmonogram_dzienny[[#This Row],[Godzina]],Wyszukaj_datę_i_godzinę,0),3),\"\")","v":""},null,{"$f":"IFERROR(Wartość_daty+6,\"\")","v":"2019-09-12"},{"$f":"IFERROR(INDEX(Harmonogram_zdarzeń[],MATCH($H$34&\"|\"&ROW(A4),Harmonogram_zdarzeń[WARTOŚĆ UNIKATOWA (OBLICZONA)],0),2),\"\")","v":""},{"$f":"IFERROR(INDEX(Harmonogram_zdarzeń[],MATCH($H$34&\"|\"&ROW(A4),Harmonogram_zdarzeń[WARTOŚĆ UNIKATOWA (OBLICZONA)],0),3),\"\")","v":""}]
[{"$nulls":4},{"$f":"'Przedziały czasu'!E35","v":"14:00:00"},{"$f":"IFERROR(INDEX(Harmonogram_zdarzeń[],MATCH(DATEVALUE(Wartość_daty)&Harmonogram_dzienny[[#This Row],[Godzina]],Wyszukaj_datę_i_godzinę,0),3),\"\")","v":""},null,null,{"$f":"IFERROR(INDEX(Harmonogram_zdarzeń[],MATCH($H$34&\"|\"&ROW(A5),Harmonogram_zdarzeń[WARTOŚĆ UNIKATOWA (OBLICZONA)],0),2),\"\")","v":""},{"$f":"IFERROR(INDEX(Harmonogram_zdarzeń[],MATCH($H$34&\"|\"&ROW(A5),Harmonogram_zdarzeń[WARTOŚĆ UNIKATOWA (OBLICZONA)],0),3),\"\")","v":""}]
[{"$nulls":4},{"$f":"'Przedziały czasu'!E36","v":"14:15:00"},{"$f":"IFERROR(INDEX(Harmonogram_zdarzeń[],MATCH(DATEVALUE(Wartość_daty)&Harmonogram_dzienny[[#This Row],[Godzina]],Wyszukaj_datę_i_godzinę,0),3),\"\")","v":""}]
[{"$nulls":4},{"$f":"'Przedziały czasu'!E37","v":"14:30:00"},{"$f":"IFERROR(INDEX(Harmonogram_zdarzeń[],MATCH(DATEVALUE(Wartość_daty)&Harmonogram_dzienny[[#This Row],[Godzina]],Wyszukaj_datę_i_godzinę,0),3),\"\")","v":""}]
[{"$nulls":4},{"$f":"'Przedziały czasu'!E38","v":"14:45:00"},{"$f":"IFERROR(INDEX(Harmonogram_zdarzeń[],MATCH(DATEVALUE(Wartość_daty)&Harmonogram_dzienny[[#This Row],[Godzina]],Wyszukaj_datę_i_godzinę,0),3),\"\")","v":""}]
[{"$nulls":4},{"$f":"'Przedziały czasu'!E39","v":"15:00:00"},{"$f":"IFERROR(INDEX(Harmonogram_zdarzeń[],MATCH(DATEVALUE(Wartość_daty)&Harmonogram_dzienny[[#This Row],[Godzina]],Wyszukaj_datę_i_godzinę,0),3),\"\")","v":"Przerwa"}]
[{"$nulls":4},{"$f":"'Przedziały czasu'!E40","v":"15:15:00"},{"$f":"IFERROR(INDEX(Harmonogram_zdarzeń[],MATCH(DATEVALUE(Wartość_daty)&Harmonogram_dzienny[[#This Row],[Godzina]],Wyszukaj_datę_i_godzinę,0),3),\"\")","v":""}]
[{"$nulls":4},{"$f":"'Przedziały czasu'!E41","v":"15:30:00"},{"$f":"IFERROR(INDEX(Harmonogram_zdarzeń[],MATCH(DATEVALUE(Wartość_daty)&Harmonogram_dzienny[[#This Row],[Godzina]],Wyszukaj_datę_i_godzinę,0),3),\"\")","v":""}]
[{"$nulls":4},{"$f":"'Przedziały czasu'!E42","v":"15:45:00"},{"$f":"IFERROR(INDEX(Harmonogram_zdarzeń[],MATCH(DATEVALUE(Wartość_daty)&Harmonogram_dzienny[[#This Row],[Godzina]],Wyszukaj_datę_i_godzinę,0),3),\"\")","v":""}]
[{"$nulls":4},{"$f":"'Przedziały czasu'!E43","v":"16:00:00"},{"$f":"IFERROR(INDEX(Harmonogram_zdarzeń[],MATCH(DATEVALUE(Wartość_daty)&Harmonogram_dzienny[[#This Row],[Godzina]],Wyszukaj_datę_i_godzinę,0),3),\"\")","v":""}]
[{"$nulls":4},{"$f":"'Przedziały czasu'!E44","v":"16:15:00"},{"$f":"IFERROR(INDEX(Harmonogram_zdarzeń[],MATCH(DATEVALUE(Wartość_daty)&Harmonogram_dzienny[[#This Row],[Godzina]],Wyszukaj_datę_i_godzinę,0),3),\"\")","v":""}]
[{"$nulls":4},{"$f":"'Przedziały czasu'!E45","v":"16:30:00"},{"$f":"IFERROR(INDEX(Harmonogram_zdarzeń[],MATCH(DATEVALUE(Wartość_daty)&Harmonogram_dzienny[[#This Row],[Godzina]],Wyszukaj_datę_i_godzinę,0),3),\"\")","v":""}]
[{"$nulls":4},{"$f":"'Przedziały czasu'!E46","v":"16:45:00"},{"$f":"IFERROR(INDEX(Harmonogram_zdarzeń[],MATCH(DATEVALUE(Wartość_daty)&Harmonogram_dzienny[[#This Row],[Godzina]],Wyszukaj_datę_i_godzinę,0),3),\"\")","v":""}]
[{"$nulls":4},{"$f":"'Przedziały czasu'!E47","v":"17:00:00"},{"$f":"IFERROR(INDEX(Harmonogram_zdarzeń[],MATCH(DATEVALUE(Wartość_daty)&Harmonogram_dzienny[[#This Row],[Godzina]],Wyszukaj_datę_i_godzinę,0),3),\"\")","v":"Dom"}]
[{"$nulls":4},{"$f":"'Przedziały czasu'!E48","v":"17:15:00"},{"$f":"IFERROR(INDEX(Harmonogram_zdarzeń[],MATCH(DATEVALUE(Wartość_daty)&Harmonogram_dzienny[[#This Row],[Godzina]],Wyszukaj_datę_i_godzinę,0),3),\"\")","v":""}]
[{"$nulls":4},{"$f":"'Przedziały czasu'!E49","v":"17:30:00"},{"$f":"IFERROR(INDEX(Harmonogram_zdarzeń[],MATCH(DATEVALUE(Wartość_daty)&Harmonogram_dzienny[[#This Row],[Godzina]],Wyszukaj_datę_i_godzinę,0),3),\"\")","v":""}]
[{"$nulls":4},{"$f":"'Przedziały czasu'!E50","v":"17:45:00"},{"$f":"IFERROR(INDEX(Harmonogram_zdarzeń[],MATCH(DATEVALUE(Wartość_daty)&Harmonogram_dzienny[[#This Row],[Godzina]],Wyszukaj_datę_i_godzinę,0),3),\"\")","v":""}]
[{"$nulls":4},{"$f":"'Przedziały czasu'!E51","v":"18:00:00"},{"$f":"IFERROR(INDEX(Harmonogram_zdarzeń[],MATCH(DATEVALUE(Wartość_daty)&Harmonogram_dzienny[[#This Row],[Godzina]],Wyszukaj_datę_i_godzinę,0),3),\"\")","v":"Trening piłkarski"}]
[{"$nulls":4},{"$f":"'Przedziały czasu'!E52","v":"18:15:00"},{"$f":"IFERROR(INDEX(Harmonogram_zdarzeń[],MATCH(DATEVALUE(Wartość_daty)&Harmonogram_dzienny[[#This Row],[Godzina]],Wyszukaj_datę_i_godzinę,0),3),\"\")","v":""}]
[{"$nulls":4},{"$f":"'Przedziały czasu'!E53","v":"18:30:00"},{"$f":"IFERROR(INDEX(Harmonogram_zdarzeń[],MATCH(DATEVALUE(Wartość_daty)&Harmonogram_dzienny[[#This Row],[Godzina]],Wyszukaj_datę_i_godzinę,0),3),\"\")","v":""}]
[{"$nulls":4},{"$f":"'Przedziały czasu'!E54","v":"18:45:00"},{"$f":"IFERROR(INDEX(Harmonogram_zdarzeń[],MATCH(DATEVALUE(Wartość_daty)&Harmonogram_dzienny[[#This Row],[Godzina]],Wyszukaj_datę_i_godzinę,0),3),\"\")","v":""}]
[{"$nulls":4},{"$f":"'Przedziały czasu'!E55","v":"19:00:00"},{"$f":"IFERROR(INDEX(Harmonogram_zdarzeń[],MATCH(DATEVALUE(Wartość_daty)&Harmonogram_dzienny[[#This Row],[Godzina]],Wyszukaj_datę_i_godzinę,0),3),\"\")","v":""}]
[{"$nulls":4},{"$f":"'Przedziały czasu'!E56","v":"19:15:00"},{"$f":"IFERROR(INDEX(Harmonogram_zdarzeń[],MATCH(DATEVALUE(Wartość_daty)&Harmonogram_dzienny[[#This Row],[Godzina]],Wyszukaj_datę_i_godzinę,0),3),\"\")","v":""}]
[{"$nulls":4},{"$f":"'Przedziały czasu'!E57","v":"19:30:00"},{"$f":"IFERROR(INDEX(Harmonogram_zdarzeń[],MATCH(DATEVALUE(Wartość_daty)&Harmonogram_dzienny[[#This Row],[Godzina]],Wyszukaj_datę_i_godzinę,0),3),\"\")","v":""}]
[{"$nulls":4},{"$f":"'Przedziały czasu'!E58","v":"19:45:00"},{"$f":"IFERROR(INDEX(Harmonogram_zdarzeń[],MATCH(DATEVALUE(Wartość_daty)&Harmonogram_dzienny[[#This Row],[Godzina]],Wyszukaj_datę_i_godzinę,0),3),\"\")","v":""}]
[{"$nulls":4},{"$f":"'Przedziały czasu'!E59","v":"20:00:00"},{"$f":"IFERROR(INDEX(Harmonogram_zdarzeń[],MATCH(DATEVALUE(Wartość_daty)&Harmonogram_dzienny[[#This Row],[Godzina]],Wyszukaj_datę_i_godzinę,0),3),\"\")","v":""}]
[{"$nulls":4},{"$f":"'Przedziały czasu'!E60","v":"20:15:00"},{"$f":"IFERROR(INDEX(Harmonogram_zdarzeń[],MATCH(DATEVALUE(Wartość_daty)&Harmonogram_dzienny[[#This Row],[Godzina]],Wyszukaj_datę_i_godzinę,0),3),\"\")","v":""}]
[{"$nulls":4},{"$f":"'Przedziały czasu'!E61","v":"20:30:00"},{"$f":"IFERROR(INDEX(Harmonogram_zdarzeń[],MATCH(DATEVALUE(Wartość_daty)&Harmonogram_dzienny[[#This Row],[Godzina]],Wyszukaj_datę_i_godzinę,0),3),\"\")","v":""}]
[{"$nulls":4},{"$f":"'Przedziały czasu'!E62","v":"20:45:00"},{"$f":"IFERROR(INDEX(Harmonogram_zdarzeń[],MATCH(DATEVALUE(Wartość_daty)&Harmonogram_dzienny[[#This Row],[Godzina]],Wyszukaj_datę_i_godzinę,0),3),\"\")","v":""}]
[{"$nulls":4},{"$f":"'Przedziały czasu'!E63","v":"21:00:00"},{"$f":"IFERROR(INDEX(Harmonogram_zdarzeń[],MATCH(DATEVALUE(Wartość_daty)&Harmonogram_dzienny[[#This Row],[Godzina]],Wyszukaj_datę_i_godzinę,0),3),\"\")","v":""}]
[{"$nulls":4},{"$f":"'Przedziały czasu'!E64","v":""},{"$f":"IFERROR(INDEX(Harmonogram_zdarzeń[],MATCH(DATEVALUE(Wartość_daty)&Harmonogram_dzienny[[#This Row],[Godzina]],Wyszukaj_datę_i_godzinę,0),3),\"\")","v":""}]
[{"$nulls":4},{"$f":"'Przedziały czasu'!E65","v":""},{"$f":"IFERROR(INDEX(Harmonogram_zdarzeń[],MATCH(DATEVALUE(Wartość_daty)&Harmonogram_dzienny[[#This Row],[Godzina]],Wyszukaj_datę_i_godzinę,0),3),\"\")","v":""}]
[{"$nulls":4},{"$f":"'Przedziały czasu'!E66","v":""},{"$f":"IFERROR(INDEX(Harmonogram_zdarzeń[],MATCH(DATEVALUE(Wartość_daty)&Harmonogram_dzienny[[#This Row],[Godzina]],Wyszukaj_datę_i_godzinę,0),3),\"\")","v":""}]
[{"$nulls":4},{"$f":"'Przedziały czasu'!E67","v":""},{"$f":"IFERROR(INDEX(Harmonogram_zdarzeń[],MATCH(DATEVALUE(Wartość_daty)&Harmonogram_dzienny[[#This Row],[Godzina]],Wyszukaj_datę_i_godzinę,0),3),\"\")","v":""}]
[{"$nulls":4},{"$f":"'Przedziały czasu'!E68","v":""},{"$f":"IFERROR(INDEX(Harmonogram_zdarzeń[],MATCH(DATEVALUE(Wartość_daty)&Harmonogram_dzienny[[#This Row],[Godzina]],Wyszukaj_datę_i_godzinę,0),3),\"\")","v":""}]
[{"$nulls":4},{"$f":"'Przedziały czasu'!E69","v":""},{"$f":"IFERROR(INDEX(Harmonogram_zdarzeń[],MATCH(DATEVALUE(Wartość_daty)&Harmonogram_dzienny[[#This Row],[Godzina]],Wyszukaj_datę_i_godzinę,0),3),\"\")","v":""}]
[{"$nulls":4},{"$f":"'Przedziały czasu'!E70","v":""},{"$f":"IFERROR(INDEX(Harmonogram_zdarzeń[],MATCH(DATEVALUE(Wartość_daty)&Harmonogram_dzienny[[#This Row],[Godzina]],Wyszukaj_datę_i_godzinę,0),3),\"\")","v":""}]
[{"$nulls":4},{"$f":"'Przedziały czasu'!E71","v":""},{"$f":"IFERROR(INDEX(Harmonogram_zdarzeń[],MATCH(DATEVALUE(Wartość_daty)&Harmonogram_dzienny[[#This Row],[Godzina]],Wyszukaj_datę_i_godzinę,0),3),\"\")","v":""}]
[{"$nulls":4},{"$f":"'Przedziały czasu'!E72","v":""},{"$f":"IFERROR(INDEX(Harmonogram_zdarzeń[],MATCH(DATEVALUE(Wartość_daty)&Harmonogram_dzienny[[#This Row],[Godzina]],Wyszukaj_datę_i_godzinę,0),3),\"\")","v":""}]
[{"$nulls":4},{"$f":"'Przedziały czasu'!E73","v":""},{"$f":"IFERROR(INDEX(Harmonogram_zdarzeń[],MATCH(DATEVALUE(Wartość_daty)&Harmonogram_dzienny[[#This Row],[Godzina]],Wyszukaj_datę_i_godzinę,0),3),\"\")","v":""}]
[{"$nulls":4},{"$f":"'Przedziały czasu'!E74","v":""},{"$f":"IFERROR(INDEX(Harmonogram_zdarzeń[],MATCH(DATEVALUE(Wartość_daty)&Harmonogram_dzienny[[#This Row],[Godzina]],Wyszukaj_datę_i_godzinę,0),3),\"\")","v":""}]
[{"$nulls":4},{"$f":"'Przedziały czasu'!E75","v":""},{"$f":"IFERROR(INDEX(Harmonogram_zdarzeń[],MATCH(DATEVALUE(Wartość_daty)&Harmonogram_dzienny[[#This Row],[Godzina]],Wyszukaj_datę_i_godzinę,0),3),\"\")","v":""}]

{"sheet":"Harmonogram zdarzeń","index":1,"n_rows":15,"n_cols":8,"rows_kept":15,"merged":[[1,1,4,2],[5,1,6,2],[7,1,7,2]]}
[null,"Harmonogram zdarzeń"]
[null,{"$f":"DAY(Wartość_daty)","v":6},null,null,"DATA","GODZINA","OPIS","WARTOŚĆ UNIKATOWA (OBLICZONA)"]
[{"$nulls":4},{"$f":"TODAY()","v":"2019-09-06"},"06:00:00","Pobudka",{"$f":"Harmonogram_zdarzeń[[#This Row],[DATA]]&\"|\"&COUNTIF($E$3:E3,E3)","v":"43714|1"}]
[{"$nulls":4},{"$f":"TODAY()","v":"2019-09-06"},"06:30:00","Prysznic",{"$f":"Harmonogram_zdarzeń[[#This Row],[DATA]]&\"|\"&COUNTIF($E$3:E4,E4)","v":"43714|2"}]
[{"$nulls":4},"2019-09-06","07:30:00","Wyjście do pracy",{"$f":"Harmonogram_zdarzeń[[#This Row],[DATA]]&\"|\"&COUNTIF($E$3:E5,E5)","v":"43714|3"}]
[null,{"$f":"TEXT(Wartość_daty,\"dddd\")","v":"piątek"},null,null,"2019-09-06","08:00:00","Początek zmiany",{"$f":"Harmonogram_zdarzeń[[#This Row],[DATA]]&\"|\"&COUNTIF($E$3:E6,E6)","v":"43714|4"}]
[{"$nulls":4},"2019-09-06","10:00:00","Przerwa",{"$f":"Harmonogram_zdarzeń[[#This Row],[DATA]]&\"|\"&COUNTIF($E$3:E7,E7)","v":"43714|5"}]
[null,{"$f":"Wartość_daty","v":"6 WRZESIEŃ 2019"},null,null,"2019-09-06","12:00:00","Obiad",{"$f":"Harmonogram_zdarzeń[[#This Row],[DATA]]&\"|\"&COUNTIF($E$3:E8,E8)","v":"43714|6"}]
[{"$nulls":4},"2019-09-06","13:00:00","Powrót do pracy",{"$f":"Harmonogram_zdarzeń[[#This Row],[DATA]]&\"|\"&COUNTIF($E$3:E9,E9)","v":"43714|7"}]
[null,"Wybierz, aby edytować przedziały czasu",null,null,"2019-09-06","13:30:00","Zadzwonić do firmy",{"$f":"Harmonogram_zdarzeń[[#This Row],[DATA]]&\"|\"&COUNTIF($E$3:E10,E10)","v":"43714|8"}]
[{"$nulls":4},"2019-09-06","15:00:00","Przerwa",{"$f":"Harmonogram_zdarzeń[[#This Row],[DATA]]&\"|\"&COUNTIF($E$3:E11,E11)","v":"43714|9"}]
[null,"Wybierz, aby wyświetlić arkusz Harmonogram dzienny",null,null,"2019-09-06","17:00:00","Dom",{"$f":"Harmonogram_zdarzeń[[#This Row],[DATA]]&\"|\"&COUNTIF($E$3:E12,E12)","v":"43714|10"}]
[{"$nulls":4},"2019-09-06","18:00:00","Trening piłkarski",{"$f":"Harmonogram_zdarzeń[[#This Row],[DATA]]&\"|\"&COUNTIF($E$3:E13,E13)","v":"43714|11"}]
[{"$nulls":4},{"$f":"TODAY()+1","v":"2019-09-07"},"06:30:00","Śniadanie",{"$f":"Harmonogram_zdarzeń[[#This Row],[DATA]]&\"|\"&COUNTIF($E$3:E14,E14)","v":"43715|1"}]
[{"$nulls":4},{"$f":"TODAY()+1","v":"2019-09-07"},"07:30:00","Wyjście do pracy",{"$f":"Harmonogram_zdarzeń[[#This Row],[DATA]]&\"|\"&COUNTIF($E$3:E15,E15)","v":"43715|2"}]

{"sheet":"Przedziały czasu","index":2,"n_rows":75,"n_cols":5,"rows_kept":75,"merged":[[1,1,1,2],[9,1,9,2]]}
[null,"Przedziały czasu"]
[null,"EDYTUJ TABELĘ GODZIN",null,null,"Godzina"]
[{"$nulls":4},{"$f":"Godzina_rozpoczęcia","v":"06:00:00"}]
[null,"Godzina rozpoczęcia","06:00:00",null,{"$f":"IFERROR(IF($E3+Przyrost>Godzina_zakończenia,\"\",$E3+Przyrost),\"\")","v":"06:15:00"}]
[{"$nulls":4},"06:30:00"]
[null,"Przedział","15 MIN",null,"06:45:00"]
[{"$nulls":4},"07:00:00"]
[null,"Godzina zakończenia","21:00:00",null,"07:15:00"]
[{"$nulls":4},"07:30:00"]
[null,"WYŚWIETL HARMONOGRAM",null,null,"07:45:00"]
[{"$nulls":4},"08:00:00"]
[null,"Wybierz, aby wyświetlić arkusz Harmonogram dzienny",null,null,"08:15:00"]
[{"$nulls":4},"08:30:00"]
[null,"Wybierz, aby dodać nowe zdarzenie",null,null,"08:45:00"]
[{"$nulls":4},"09:00:00"]
[{"$nulls":4},"09:15:00"]
[{"$nulls":4},"09:30:00"]
[{"$nulls":4},"09:45:00"]
[{"$nulls":4},"10:00:00"]
[{"$nulls":4},"10:15:00"]
[{"$nulls":4},"10:30:00"]
[{"$nulls":4},"10:45:00"]
[{"$nulls":4},"11:00:00"]
[{"$nulls":4},"11:15:00"]
[{"$nulls":4},"11:30:00"]
[{"$nulls":4},"11:45:00"]
[{"$nulls":4},"12:00:00"]
[{"$nulls":4},"12:15:00"]
[{"$nulls":4},"12:30:00"]
[{"$nulls":4},"12:45:00"]
[{"$nulls":4},"13:00:00"]
[{"$nulls":4},"13:15:00"]
[{"$nulls":4},"13:30:00"]
[{"$nulls":4},"13:45:00"]
[{"$nulls":4},"14:00:00"]
[{"$nulls":4},{"$f":"IFERROR(IF($E35+Przyrost>Godzina_zakończenia,\"\",$E35+Przyrost),\"\")","v":"14:15:00"}]
[{"$nulls":4},"14:30:00"]
[{"$nulls":4},"14:45:00"]
[{"$nulls":4},"15:00:00"]
[{"$nulls":4},"15:15:00"]
[{"$nulls":4},"15:30:00"]
[{"$nulls":4},"15:45:00"]
[{"$nulls":4},"16:00:00"]
[{"$nulls":4},"16:15:00"]
[{"$nulls":4},"16:30:00"]
[{"$nulls":4},"16:45:00"]
[{"$nulls":4},"17:00:00"]
[{"$nulls":4},"17:15:00"]
[{"$nulls":4},"17:30:00"]
[{"$nulls":4},"17:45:00"]
[{"$nulls":4},"18:00:00"]
[{"$nulls":4},"18:15:00"]
[{"$nulls":4},"18:30:00"]
[{"$nulls":4},"18:45:00"]
[{"$nulls":4},"19:00:00"]
[{"$nulls":4},"19:15:00"]
[{"$nulls":4},"19:30:00"]
[{"$nulls":4},"19:45:00"]
[{"$nulls":4},"20:00:00"]
[{"$nulls":4},"20:15:00"]
[{"$nulls":4},"20:30:00"]
[{"$nulls":4},"20:45:00"]
[{"$nulls":4},"21:00:00"]
[{"$nulls":4},""]
[{"$nulls":4},""]
[{"$nulls":4},""]
[{"$nulls":4},""]
[{"$nulls":4},{"$f":"IFERROR(IF($E67+Przyrost>Godzina_zakończenia,\"\",$E67+Przyrost),\"\")","v":""}]
[{"$nulls":4},""]
[{"$nulls":4},""]
[{"$nulls":4},""]
[{"$nulls":4},""]
[{"$nulls":4},""]
[{"$nulls":4},""]
[{"$nulls":4},""]